fUSD/lending_fUSD_20251206
["ID","MTS","AMOUNT","RATE_DAILY","PERIOD"]
[396496749,1765006243424,-150.0,0.00015637,2]
[396496750,1765006243433,-150.0,0.00015637,2]
[396496751,1765006243442,-150.0,0.0001564,2]
[396496752,1765006243451,-150.0,0.00015652,2]
[396496753,1765006243461,-150.0,0.00015652,2]
[396496754,1765006243470,-150.0,0.0001566,2]
[396496755,1765006243480,-150.0,0.0001567,2]
[396496756,1765006243489,-150.0,0.00015672,2]
[396496757,1765006243499,-150.0,0.00015676,2]
[396496758,1765006243509,-150.0,0.00015683,2]
[396496759,1765006243519,-150.0,0.00015684,2]
[396496760,1765006243528,-151.07,0.00015685,2]
[396496761,1765006243537,-150.0,0.00015687,2]
[396496762,1765006243547,-150.0,0.000157,2]
[396496763,1765006243556,-150.0,0.00015704,2]
[396496764,1765006243565,-150.0,0.00015707,2]
[396496765,1765006243575,-633.60185623,0.00015707,2]
[396496766,1765006243584,-150.0,0.00015712,2]
[396496767,1765006243593,-150.0,0.00015712,2]
[396496768,1765006243603,-150.0,0.00015712,2]
[396496769,1765006243612,-150.0,0.00015712,2]
[396496770,1765006243622,-150.0,0.00015724,2]
[396496771,1765006243631,-150.0,0.0001573,2]
[396496772,1765006243640,-150.0,0.00015736,2]
[396496773,1765006243649,-150.0,0.00015737,2]
[396496774,1765006243658,-150.0,0.00015741,2]
[396496775,1765006243667,-150.0,0.00015741,2]
[396496776,1765006243677,-316.549252,0.00015742,2]
[396496777,1765006243686,-150.0,0.00015749,2]
[396496778,1765006243697,-2156.10789492,0.00015751,2]
[396496779,1765006243707,-1458.7429545,0.00015751,2]
[396496780,1765006243715,-150.0,0.00015753,2]
[396496781,1765006243724,-150.0,0.00015755,2]
[396496782,1765006243733,-150.0,0.00015768,2]
[396496783,1765006243742,-150.0,0.00015773,2]
[396496784,1765006243751,-150.0,0.00015773,2]
[396496785,1765006243760,-150.0,0.00015776,2]
[396496786,1765006243769,-150.0,0.00015787,2]
[396496787,1765006243778,-150.0,0.00015797,2]
[396496788,1765006243787,-150.0,0.00015797,2]
[396496789,1765006243796,-150.0,0.00015797,2]
[396496790,1765006243806,-150.0,0.00015797,2]
[396496791,1765006243814,-500.0,0.00015798,2]
[396496792,1765006243823,-500.0,0.00015798,2]
[396496793,1765006243832,-289.06337183,0.00015798,2]
[396496794,1765006244530,-320.93646524,0.00015798,2]
[396496795,1765006244540,-500.0,0.00015798,2]
[396496796,1765006244549,-500.0,0.00015798,2]
[396496797,1765006244558,-500.0,0.00015798,2]
[396496798,1765006244567,-500.0,0.00015798,2]
[396496799,1765006244576,-500.0,0.00015798,2]
[396496800,1765006244586,-500.0,0.00015798,2]
[396496801,1765006244595,-150.0,0.000158,2]
[396496802,1765006244603,-150.0,0.000158,2]
[396496803,1765006244612,-150.0,0.00015822,2]
[396496804,1765006244621,-150.0,0.00015823,2]
[396496805,1765006244632,-150.0,0.00015833,2]
[396496806,1765006244641,-150.0,0.00015834,2]
[396496807,1765006244650,-150.0,0.00015837,2]
[396496808,1765006244659,-150.0,0.0001584,2]
[396496809,1765006244667,-150.0,0.00015846,2]
[396496810,1765006244678,-150.0,0.00015846,2]
[396496811,1765006244687,-150.0,0.00015854,2]
[396496812,1765006244696,-150.0,0.00015854,2]
[396496813,1765006244705,-150.0,0.00015854,2]
[396496814,1765006244715,-467.8,0.00015855,2]
[396496815,1765006244724,-150.0,0.00015865,2]
[396496816,1765006244733,-150.0,0.00015869,2]
[396496817,1765006244743,-150.0,0.0001587,2]
[396496818,1765006244751,-150.0,0.00015882,2]
[396496819,1765006244761,-150.0,0.00015887,2]
[396496820,1765006244770,-150.0,0.00015893,2]
[396496821,1765006244779,-150.0,0.00015894,2]
[396496822,1765006244789,-150.0,0.00015894,2]
[396496823,1765006244798,-150.0,0.00015897,2]
[396496824,1765006244807,-1027.74862571,0.000159,2]
[396496825,1765006244817,-815.0163098,0.00015909,2]
[396496826,1765006244828,-217.38586404,0.00015909,2]
[396496827,1765006244839,-150.0,0.00015911,2]
[396496828,1765006244847,-150.0,0.00015916,2]
[396496829,1765006244858,-150.0,0.00015919,2]
[396496830,1765006244868,-150.0,0.00015925,2]
[396496831,1765006244877,-150.0,0.00015929,2]
[396496832,1765006244886,-150.0,0.00015937,2]
[396496833,1765006244895,-150.0,0.00015939,2]
[396496834,1765006244904,-150.0,0.00015943,2]
[396496835,1765006244913,-150.0,0.00015955,2]
[396496836,1765006244922,-150.0,0.00015961,2]
[396496837,1765006244932,-150.0,0.00015962,2]
[396496838,1765006244941,-78.2233422,0.00015967,2]
[396496839,1765006244953,-71.7766578,0.00015967,2]
[396496840,1765006244963,-150.0,0.00015967,2]
[396496841,1765006244972,-150.0,0.00015967,2]
[396496842,1765006244981,-59.02556253,0.00015967,2]
[396496843,1765006244992,-90.97443747,0.00015967,2]
[396496844,1765006245002,-150.0,0.00015967,2]
[396496845,1765006245011,-127.17256952,0.00015986,2]
[396496847,1765006246087,-22.82743048,0.00015986,2]
[396496848,1765006246097,-150.0,0.00015987,2]
[396496849,1765006246107,-392.92575989,0.0001599,2]
[396496850,1765006246118,-280.11993112,0.0001599,2]
[396496851,1765006246127,-150.0,0.00015991,2]
[396496852,1765006246136,-150.0,0.00015993,2]
[396496853,1765006246146,-1000.0,0.00015998,3]
[396496854,1765006246156,-401.53629027,0.00016,4]
[396497028,1765006520650,2751.0,0.00015002,2]
[396497033,1765006542407,-250.0,0.00015281,2]
[396497034,1765006542470,-250.0,0.00015381,2]
[396497035,1765006542530,-300.0,0.00015381,2]
[396497036,1765006542589,-1200.0,0.00015381,2]
[396497037,1765006542651,-300.0,0.00015381,2]
[396497038,1765006542714,-1982.45027829,0.00015382,2]
[396497039,1765006543084,-1435.10944342,0.00015382,2]
[396497040,1765006552533,-289.77687257,0.00015382,2]
[396497041,1765006552595,-319.1165278,0.00015382,2]
[396497042,1765006552659,-248.04714839,0.00015481,2]
[396497043,1765006552940,-8286.12890248,0.00015482,2]
[396497044,1765006593942,978.80217242,0.00015003,2]
[396497045,1765006593965,4155.59535397,0.00015003,2]
[396497046,1765006593988,4155.59535397,0.00015003,2]
[396497047,1765006594013,2212.36711964,0.00015003,2]
[396497056,1765006678160,-300.0,0.00015481,2]
[396497057,1765006678218,-195.0,0.00015481,2]
[396497058,1765006678279,-300.0,0.00015481,2]
[396497059,1765006678341,-300.0,0.00015481,2]
[396497060,1765006678611,-7810.01,0.00015482,2]
[396497061,1765006681185,1943.22823433,0.00015027,2]
[396497063,1765006691768,-632.78772076,0.00015027,2]
[396497064,1765006695568,-241.32,0.00015027,2]
[396497065,1765006696575,-853.54595509,0.00015027,2]
[396497066,1765006697114,-8292.91808982,0.00015027,2]
[396497078,1765006825741,500.0,0.00014991,2]
[396497081,1765006868389,3251.97,0.00014955,2]
[396497091,1765007020862,-2119.369,0.00015172,2]
[396497092,1765007020921,-169.399,0.00015172,2]
[396497093,1765007020980,-195.0,0.00015272,2]
[396497094,1765007021040,-199.94850002,0.00015372,2]
[396497095,1765007021097,-250.0,0.00015375,2]
[396497096,1765007021149,-199.94850001,0.00015377,2]
[396497097,1765007021210,-300.0,0.00015381,2]
[396497098,1765007021267,-278.0,0.00015382,2]
[396497099,1765007026682,-3143.77393919,0.00015382,2]
[396497100,1765007026740,-199.94850001,0.00015382,2]
[396497101,1765007026798,-1573.66666556,0.00015382,2]
[396497103,1765007029871,-165.23179048,0.00015382,2]
[396497104,1765007029927,-226.10786118,0.000154,2]
[396497105,1765007029983,-2040.89,0.00015472,2]
[396497106,1765007030040,-2040.89,0.00015472,2]
[396497107,1765007030097,-160.25312722,0.00015481,2]
[396497108,1765007030156,-233.26444224,0.00015481,2]
[396497109,1765007066413,-341.78203759,0.00015382,2]
[396497110,1765007066472,-300.0,0.0001548,2]
[396497111,1765007066546,-266.73555776,0.00015481,2]
[396497112,1765007066603,-573.38394251,0.00015481,2]
[396497113,1765007066666,-629.98489465,0.00015481,2]
[396497114,1765007066725,-250.0,0.00015481,2]
[396497115,1765007066786,-300.0,0.00015481,2]
[396497116,1765007066840,-1200.0,0.00015481,2]
[396497117,1765007066892,-500.0,0.00015481,2]
[396497118,1765007066949,-500.0,0.00015481,2]
[396497119,1765007067115,-500.0,0.00015481,2]
[396497120,1765007067169,-500.0,0.00015481,2]
[396497121,1765007067217,-500.0,0.00015481,2]
[396497122,1765007067533,-607.94303806,0.00015482,2]
[396497123,1765007068157,-6646.26224033,0.00015482,2]
[396497124,1765007068332,-10000.01,0.00015482,2]
[396497125,1765007068422,-10000.01,0.00015482,2]
[396497126,1765007068486,-10000.01,0.00015482,2]
[396497127,1765007068550,-10000.01,0.00015482,2]
[396497128,1765007068628,-10000.01,0.00015482,2]
[396497129,1765007068685,-10000.01,0.00015482,2]
[396497130,1765007068734,-10000.01,0.00015482,2]
[396497131,1765007070073,-10000.01,0.00015482,2]
[396497135,1765007073340,-10000.01,0.00015482,2]
[396497136,1765007073542,-10000.01,0.00015482,2]
[396497138,1765007073731,-10000.01,0.00015482,2]
[396497139,1765007073910,-10000.01,0.00015482,2]
[396497140,1765007074094,-10000.01,0.00015482,2]
[396497141,1765007074295,-10000.01,0.00015482,2]
[396497142,1765007074464,-10000.01,0.00015482,2]
[396497143,1765007074758,-10000.01,0.00015482,2]
[396497144,1765007079496,-10000.01,0.00015482,2]
[396497146,1765007085671,-10000.01,0.00015482,2]
[396497147,1765007088933,-10000.01,0.00015482,2]
[396497148,1765007089215,-10000.01,0.00015482,2]
[396497149,1765007089389,-10000.01,0.00015482,2]
[396497150,1765007089607,-10000.01,0.00015482,2]
[396497151,1765007089750,-10000.01,0.00015482,2]
[396497152,1765007089933,-10000.01,0.00015482,2]
[396497153,1765007090104,-10000.01,0.00015482,2]
[396497154,1765007091841,-10000.01,0.00015482,2]
[396497155,1765007092002,-10000.01,0.00015482,2]
[396497156,1765007095119,-10000.01,0.00015482,2]
[396497157,1765007095964,-10000.01,0.00015482,2]
[396497158,1765007097991,-10000.01,0.00015482,2]
[396497159,1765007100940,-10000.01,0.00015482,2]
[396497160,1765007101147,-10000.01,0.00015482,2]
[396497161,1765007101323,-1200.0,0.00015481,2]
[396497162,1765007101457,-7600.01,0.00015482,2]
[396497163,1765007104364,-300.0,0.00015481,2]
[396497164,1765007104428,-240.0,0.00015481,2]
[396497165,1765007104600,-8920.01,0.00015482,2]
[396497166,1765007104695,-10000.01,0.00015482,2]
[396497167,1765007104872,-10000.01,0.00015482,2]
[396497168,1765007105430,-10000.01,0.00015482,2]
[396497169,1765007107125,-10000.01,0.00015482,2]
[396497170,1765007107310,-150.0,0.00015288,2]
[396497171,1765007107370,-150.0,0.00015344,2]
[396497172,1765007107425,-150.0,0.00015401,2]
[396497173,1765007107696,-150.0,0.00015458,2]
[396497174,1765007107705,-8950.01,0.00015482,2]
[396497175,1765007110272,-150.0,0.00015288,2]
[396497176,1765007110331,-150.0,0.00015388,2]
[396497177,1765007110529,-9400.01,0.00015482,2]
[396497178,1765007110639,-10000.01,0.00015482,2]
[396497179,1765007110724,-150.0,0.00015288,2]
[396497180,1765007110862,-150.0,0.0001533,2]
[396497181,1765007110872,-150.0,0.00015373,2]
[396497182,1765007110883,-9400.01,0.00015482,2]
[396497183,1765007111094,-150.0,0.00015415,2]
[396497184,1765007111104,-150.0,0.00015458,2]
[396497185,1765007111114,-9700.01,0.00015482,2]
[396497186,1765007112306,-405.93948708,0.00015482,2]
[396497187,1765007116602,-10000.01,0.00015482,2]
[396497188,1765007116676,-10000.01,0.00015482,2]
[396497189,1765007116808,-10000.01,0.00015482,2]
[396497190,1765007117007,-10000.01,0.00015482,2]
[396497191,1765007122627,-150.0,0.00015288,2]
[396497192,1765007122684,-150.0,0.00015394,2]
[396497193,1765007122839,-9400.01,0.00015482,2]
[396497194,1765007122929,-10000.01,0.00015482,2]
[396497195,1765007123063,-10000.01,0.00015482,2]
[396497196,1765007123160,-10000.01,0.00015482,2]
[396497197,1765007131719,-150.0,0.00015288,2]
[396497198,1765007131776,-150.0,0.00015288,2]
[396497199,1765007131837,-150.0,0.00015288,2]
[396497200,1765007131893,-150.0,0.00015288,2]
[396497201,1765007131951,-150.0,0.00015362,2]
[396497202,1765007132011,-150.0,0.00015377,2]
[396497203,1765007132070,-150.0,0.00015435,2]
[396497204,1765007132131,-150.0,0.00015466,2]
[396497205,1765007132587,-7600.01,0.00015482,2]
[396497206,1765007132647,-10000.01,0.00015482,2]
[396497207,1765007134817,-150.0,0.00015288,2]
[396497208,1765007134879,-150.0,0.00015288,2]
[396497209,1765007135046,-9400.01,0.00015482,2]
[396497210,1765007138643,-10000.01,0.00015482,2]
[396497211,1765007141344,-150.0,0.00015288,2]
[396497212,1765007141456,-150.0,0.00015288,2]
[396497213,1765007141465,-9550.01,0.00015482,2]
[396497214,1765007141580,-10000.01,0.00015482,2]
[396497215,1765007144156,-150.0,0.00015288,2]
[396497216,1765007144215,-150.0,0.00015328,2]
[396497217,1765007144272,-150.0,0.00015369,2]
[396497218,1765007144329,-150.0,0.00015409,2]
[396497219,1765007144386,-150.0,0.00015449,2]
[396497220,1765007144751,-8500.01,0.00015482,2]
[396497225,1765007150362,-10000.01,0.00015482,2]
[396497226,1765007150558,-10000.01,0.00015482,2]
[396497227,1765007153632,-10000.01,0.00015482,2]
[396497228,1765007153940,-10000.01,0.00015482,2]
[396497229,1765007154153,-10000.01,0.00015482,2]
[396497230,1765007156405,-10000.01,0.00015482,2]
[396497231,1765007156619,-10000.01,0.00015482,2]
[396497232,1765007159595,-10000.01,0.00015482,2]
[396497233,1765007159800,-10000.01,0.00015482,2]
[396497234,1765007160058,-10000.01,0.00015482,2]
[396497235,1765007162961,-300.0,0.00015481,2]
[396497236,1765007164050,500.0,0.00015481,2]
[396497237,1765007164163,500.0,0.00015481,2]
[396497238,1765007164286,327.25940931,0.00015481,2]
[396497239,1765007164364,500.0,0.00015481,2]
[396497240,1765007164442,500.0,0.00015481,2]
[396497241,1765007164523,500.0,0.00015481,2]
[396497242,1765007164607,500.0,0.00015481,2]
[396497243,1765007164693,500.0,0.00015481,2]
[396497244,1765007164770,500.0,0.00015481,2]
[396497245,1765007164846,500.0,0.00015481,2]
[396497246,1765007164922,500.0,0.00015481,2]
[396497247,1765007165020,500.0,0.00015481,2]
[396497248,1765007165095,500.0,0.00015481,2]
[396497249,1765007165168,500.0,0.00015481,2]
[396497250,1765007165278,500.0,0.00015481,2]
[396497251,1765007165410,500.0,0.00015481,2]
[396497252,1765007165479,500.0,0.00015481,2]
[396497253,1765007165557,500.0,0.00015481,2]
[396497254,1765007165635,500.0,0.00015481,2]
[396497255,1765007169924,72.75059069,0.00015481,2]
[396497256,1765007169988,427.24940931,0.00015481,2]
[396497257,1765007171108,-324.45510884,0.00015482,2]
[396497258,1765007173703,-300.0,0.00015482,2]
[396497259,1765007177548,-180.49117804,0.00015482,2]
[396497260,1765007178615,-172.75059069,0.00015482,2]
[396497261,1765007178747,-10000.01,0.00015482,2]
[396497262,1765007178812,-10000.01,0.00015482,2]
[396497263,1765007178890,-10000.01,0.00015482,2]
[396497264,1765007179067,-10000.01,0.00015482,2]
[396497265,1765007179133,-266.83913473,0.00015482,2]
[396497266,1765007179270,-10000.01,0.00015482,2]
[396497267,1765007179478,-10000.01,0.00015482,2]
[396497268,1765007179686,-3421.56968025,0.00015482,2]
[396497269,1765007179751,-3156.8706395,0.00015482,2]
[396497270,1765007179892,-1000.0,0.00015482,2]
[396497271,1765007183216,-150.0,0.00015488,2]
[396497272,1765007183241,-77.77791142,0.0001549,2]
[396497273,1765007190696,1000.0,0.00015382,2]
[396497274,1765007193220,500.0,0.00015481,2]
[396497275,1765007193951,500.0,0.00015481,2]
[396497276,1765007194291,500.0,0.00015481,2]
[396497277,1765007194685,500.0,0.00015481,2]
[396497278,1765007195023,500.0,0.00015481,2]
[396497279,1765007195440,500.0,0.00015481,2]
[396497280,1765007195788,500.0,0.00015481,2]
[396497281,1765007196123,500.0,0.00015481,2]
[396497282,1765007196474,500.0,0.00015481,2]
[396497283,1765007196563,500.0,0.00015481,2]
[396497284,1765007196642,500.0,0.00015481,2]
[396497285,1765007196718,500.0,0.00015481,2]
[396497286,1765007196793,500.0,0.00015481,2]
[396497287,1765007196964,500.0,0.00015481,2]
[396497288,1765007197058,0.01,0.00015481,2]
[396497289,1765007197118,499.99,0.00015481,2]
[396497290,1765007197189,500.0,0.00015481,2]
[396497291,1765007197260,500.0,0.00015481,2]
[396497292,1765007197369,500.0,0.00015481,2]
[396497293,1765007197451,500.0,0.00015481,2]
[396497294,1765007197532,500.0,0.00015481,2]
[396497295,1765007197622,500.0,0.00015481,2]
[396497296,1765007197688,500.0,0.00015481,2]
[396497297,1765007197758,500.0,0.00015481,2]
[396497298,1765007197830,486.66080432,0.00015481,2]
[396497299,1765007197903,500.0,0.00015481,2]
[396497300,1765007197977,500.0,0.00015481,2]
[396497301,1765007198062,500.0,0.00015481,2]
[396497308,1765007239640,-300.0,0.0001548,2]
[396497309,1765007239706,-72.22208858,0.0001549,2]
[396497310,1765007239775,-150.0,0.000155,2]
[396497311,1765007239839,-150.0,0.000155,2]
[396497312,1765007239899,-150.0,0.000155,2]
[396497313,1765007239970,-150.0,0.00015509,2]
[396497314,1765007240046,-150.0,0.00015514,2]
[396497315,1765007240110,-150.0,0.0001553,2]
[396497316,1765007240172,-150.0,0.00015542,2]
[396497317,1765007240228,-1738.89845601,0.00015551,2]
[396497318,1765007240288,-150.0,0.00015556,2]
[396497319,1765007240350,-150.0,0.00015571,2]
[396497320,1765007240412,-150.0,0.00015571,2]
[396497321,1765007240469,-500.0,0.00015581,2]
[396497322,1765007240527,-500.0,0.00015581,2]
[396497323,1765007240584,-277.76891082,0.00015581,2]
[396497324,1765007240915,-222.23108918,0.00015581,2]
[396497325,1765007240971,-280.68,0.00015581,2]
[396497326,1765007241033,-500.0,0.00015581,2]
[396497327,1765007241091,-500.0,0.00015581,2]
[396497328,1765007241149,-500.0,0.00015581,2]
[396497329,1765007241206,-150.0,0.00015583,2]
[396497330,1765007241269,-150.0,0.00015585,2]
[396497331,1765007241330,-150.0,0.00015587,2]
[396497333,1765007241784,-4476.01,0.000156,3]
[396497334,1765007242076,-1047.99,0.000156,3]
[396497335,1765007242136,-150.0,0.00015606,2]
[396497336,1765007242196,-150.0,0.00015611,2]
[396497337,1765007242257,-150.0,0.00015627,2]
[396497338,1765007242315,-150.0,0.00015627,2]
[396497339,1765007242375,-150.0,0.00015627,2]
[396497340,1765007242430,-200.0,0.00015641,2]
[396497341,1765007242484,-150.0,0.00015645,2]
[396497342,1765007242544,-150.0,0.00015652,2]
[396497343,1765007242607,-150.0,0.00015657,2]
[396497344,1765007242671,-150.0,0.0001567,2]
[396497345,1765007242732,-150.0,0.00015684,2]
[396497346,1765007242798,-150.0,0.00015687,2]
[396497347,1765007242869,-150.0,0.00015692,2]
[396497348,1765007242925,-150.0,0.00015712,2]
[396497349,1765007242983,-150.0,0.00015712,2]
[396497351,1765007243043,-150.0,0.00015712,2]
[396497352,1765007243106,-1265.13154399,0.00015719,2]
[396497353,1765007243523,-473.76691202,0.00015719,2]
[396497354,1765007243587,-150.0,0.00015731,2]
[396497355,1765007243650,-150.0,0.00015733,2]
[396497356,1765007243715,-150.0,0.00015735,2]
[396497357,1765007243775,-150.0,0.00015741,2]
[396497358,1765007243836,-341.78203756,0.00015742,2]
[396497359,1765007243900,-150.0,0.00015755,2]
[396497360,1765007243961,-150.0,0.00015773,2]
[396497361,1765007244023,-150.0,0.00015787,2]
[396497362,1765007244085,-150.0,0.00015797,2]
[396497363,1765007244147,-150.0,0.00015797,2]
[396497364,1765007244206,-150.0,0.00015805,2]
[396497365,1765007244268,-150.0,0.00015813,2]
[396497366,1765007244330,-150.0,0.00015818,2]
[396497367,1765007244389,-150.0,0.00015824,2]
[396497368,1765007244449,-150.0,0.0001584,2]
[396497369,1765007244511,-150.0,0.00015854,2]
[396497370,1765007244571,-150.0,0.00015854,2]
[396497371,1765007244636,-150.0,0.00015854,2]
[396497372,1765007244698,-280.68,0.00015855,2]
[396497373,1765007244763,-150.0,0.00015878,2]
[396497374,1765007244826,-150.0,0.00015882,2]
[396497375,1765007244890,-150.0,0.00015887,2]
[396497376,1765007244959,-68.65364483,0.00015888,2]
[396497378,1765007245773,-1670.24481118,0.00015888,2]
[396497379,1765007245837,-500.0,0.0001589,2]
[396497380,1765007245907,-150.0,0.00015894,2]
[396497381,1765007245970,-256.28651657,0.00015895,2]
[396497382,1765007246032,-856.45718814,0.000159,2]
[396497383,1765007246155,-207.4,0.00015641,2]
[396497384,1765007246219,-3637.76770665,0.000159,2]
[396497385,1765007246283,-802.47883925,0.000159,2]
[396497386,1765007246570,-856.45718809,0.000159,2]
[396497387,1765007246631,-856.45718809,0.000159,2]
[396497391,1765007246693,-856.45718809,0.000159,2]
[396497392,1765007246754,-856.45718809,0.000159,2]
[396497393,1765007246813,-856.45718809,0.000159,2]
[396497394,1765007246873,-209.07429312,0.000159,2]
[396497395,1765007246931,-263.73771921,0.00015909,2]
[396497396,1765007247176,-489.81409444,0.00015909,2]
[396497397,1765007247233,-150.0,0.00015911,2]
[396497398,1765007247293,-150.0,0.00015913,2]
[396497399,1765007247351,-500.0,0.00015922,2]
[396497400,1765007248593,-215.0738,0.00015641,2]
[396497401,1765007248911,-223.0315306,0.00015641,2]
[396497402,1765007249343,85.00165031,0.00015641,2]
[396497405,1765007252125,-146.28204692,0.00015641,2]
[396497406,1765007252186,-1000.0,0.00015641,2]
[396497407,1765007252245,-239.84119403,0.00015641,2]
[396497408,1765007252305,-248.71531821,0.00015641,2]
[396497409,1765007252370,-257.91778498,0.00015641,2]
[396497410,1765007252428,-267.46074303,0.00015641,2]
[396497411,1765007252485,-624.01963925,0.000159,2]
[396497412,1765007252545,-4431.53654716,0.000159,2]
[396497413,1765007252972,-277.35679052,0.00015641,2]
[396497415,1765007257380,-119.27302579,0.00015923,2]
[396497416,1765007257468,-257.91778498,0.00015923,2]
[396497417,1765007257571,-267.46074303,0.00015923,2]
[396497418,1765007257618,-5055.55618641,0.00015923,2]
[396497419,1765007257745,-4431.53654716,0.00015923,2]
[396497420,1765007257794,-1136.93690568,0.00015923,2]
[396497421,1765007257853,-277.35679052,0.00015923,2]
[396497423,1765007257900,-9445.29641896,0.00015923,2]
[396497424,1765007258159,-10000.01,0.00015923,2]
[396497425,1765007258289,-10000.01,0.00015923,2]
[396497426,1765007258413,-10000.01,0.00015923,2]
[396497427,1765007258475,-10000.01,0.00015923,2]
[396497428,1765007258644,-10000.01,0.00015923,2]
[396497429,1765007258703,-10000.01,0.00015923,2]
[396497430,1765007258970,-10000.01,0.00015923,2]
[396497432,1765007259024,-10000.01,0.00015923,2]
[396497433,1765007259077,-10000.01,0.00015923,2]
[396497434,1765007259342,-10000.01,0.00015923,2]
[396497435,1765007259754,-10000.01,0.00015923,2]
[396497438,1765007267278,151.0,0.00015641,2]
[396497441,1765007272605,151.23726078,0.00015641,2]
[396497443,1765007273732,300.0,0.00015641,2]
[396497452,1765007290502,708.79,0.00015056,2]
[396497454,1765007321145,3634.57,0.00015051,2]
[396497456,1765007343413,5054.41273922,0.00015382,2]
[396497457,1765007343472,10000.01,0.00015382,2]
[396497458,1765007343532,10000.01,0.00015382,2]
[396497459,1765007343592,10000.01,0.00015382,2]
[396497460,1765007343652,10000.01,0.00015382,2]
[396497461,1765007343717,10000.01,0.00015382,2]
[396497462,1765007343785,10000.01,0.00015382,2]
[396497463,1765007343849,10000.01,0.00015382,2]
[396497464,1765007343914,10000.01,0.00015382,2]
[396497465,1765007343976,10000.01,0.00015382,2]
[396497466,1765007352101,-10000.01,0.00015382,2]
[396497467,1765007353494,-10000.01,0.00015382,2]
[396497468,1765007353776,-10000.01,0.00015382,2]
[396497469,1765007353971,-10000.01,0.00015382,2]
[396497470,1765007354171,-10000.01,0.00015382,2]
[396497471,1765007354381,-10000.01,0.00015382,2]
[396497472,1765007354555,-10000.01,0.00015382,2]
[396497473,1765007354723,-10000.01,0.00015382,2]
[396497474,1765007354908,-10000.01,0.00015382,2]
[396497476,1765007355101,-10000.01,0.00015382,2]
[396497484,1765007372070,-10000.01,0.00015382,2]
[396497486,1765007378065,-311.07221953,0.00015282,2]
[396497487,1765007378179,-9377.86556094,0.00015382,2]
[396497521,1765007432278,-511.19170544,0.00015381,2]
[396497522,1765007432288,-207.63117096,0.00015381,2]
[396497523,1765007432298,-169.01736302,0.00015381,2]
[396497524,1765007432308,-500.0,0.00015381,2]
[396497525,1765007432318,-300.0,0.00015381,2]
[396497526,1765007432327,-851.82701587,0.00015381,2]
[396497527,1765007432339,-348.17298413,0.00015381,2]
[396497528,1765007432348,-100.36903018,0.00015381,2]
[396497529,1765007432371,-199.63096982,0.00015381,2]
[396497530,1765007432380,-278.0,0.00015381,2]
[396497531,1765007432389,-1358.86903018,0.00015382,2]
[396497532,1765007432401,-827.08473548,0.00015382,2]
[396497533,1765007432523,-540.54142778,0.00015382,2]
[396497534,1765007432536,-406.08,0.00015382,2]
[396497535,1765007432547,-2389.94928522,0.00015382,2]
[396497536,1765007432559,-474.34074644,0.00015382,2]
[396497541,1765007438086,-500.0,0.00015381,2]
[396497542,1765007438095,-500.0,0.00015381,2]
[396497543,1765007438104,-500.0,0.00015381,2]
[396497544,1765007438113,-500.0,0.00015381,2]
[396497545,1765007438122,-500.0,0.00015381,2]